fUSD/lending_fUSD_20240225
["ID","MTS","AMOUNT","RATE_DAILY","PERIOD"]
[315159652,1708895455317,-500.0,0.00023999,2]
[315159653,1708895455326,-612.62,0.00023999,2]
[315159654,1708895455336,-500.0,0.00023999,2]
[315159655,1708895455345,-612.62,0.00023999,2]
[315159656,1708895455355,-500.0,0.00023999,2]
[315159657,1708895455364,-612.62,0.00023999,2]
[315159658,1708895455373,-612.76779944,0.00023999,2]
[315159659,1708895455383,-500.0,0.00023999,2]
[315159660,1708895455392,-500.0,0.00023999,2]
[315159661,1708895455402,-379.34763702,0.00023999,2]
[315159662,1708895455410,-500.0,0.00023999,2]
[315159663,1708895455419,-260.89,0.00023999,2]
[315159664,1708895455429,-867.19,0.00023999,2]
[315159665,1708895455438,-867.19,0.00023999,2]
[315159666,1708895455447,-867.19,0.00023999,2]
[315159667,1708895455457,-867.19,0.00023999,2]
[315159668,1708895455469,-867.19,0.00023999,2]
[315159669,1708895455478,-867.19,0.00023999,2]
[315159670,1708895455488,-867.19,0.00023999,2]
[315159671,1708895455497,-867.19,0.00023999,2]
[315159672,1708895455507,-867.19,0.00023999,2]
[315159673,1708895455516,-867.19,0.00023999,2]
[315159674,1708895455525,-867.19,0.00023999,2]
[315159675,1708895455535,-867.19,0.00023999,2]
[315159676,1708895455544,-867.19,0.00023999,2]
[315159677,1708895455553,-867.19,0.00023999,2]
[315159678,1708895455563,-867.19,0.00023999,2]
[315159679,1708895455572,-867.19,0.00023999,2]
[315159680,1708895455581,-867.2,0.00023999,2]
[315159681,1708895455591,-942.38,0.00023999,2]
[315159682,1708895455600,-942.38,0.00023999,2]
[315159683,1708895455610,-942.38,0.00023999,2]
[315159684,1708895455619,-942.38,0.00023999,2]
[315159685,1708895455628,-942.38,0.00023999,2]
[315159686,1708895455638,-942.38,0.00023999,2]
[315159687,1708895455647,-942.38,0.00023999,2]
[315159688,1708895455657,-942.38,0.00023999,2]
[315159689,1708895455666,-942.38,0.00023999,2]
[315159690,1708895455675,-942.38,0.00023999,2]
[315159691,1708895455684,-942.38,0.00023999,2]
[315159692,1708895455693,-942.38,0.00023999,2]
[315159693,1708895455703,-942.38,0.00023999,2]
[315159694,1708895455713,-942.38,0.00023999,2]
[315159695,1708895455722,-942.38,0.00023999,2]
[315159696,1708895455731,-942.38,0.00023999,2]
[315159697,1708895455740,-942.54750131,0.00023999,2]
[315159698,1708895455749,-500.0,0.00023999,2]
[315159699,1708895455759,-500.0,0.00023999,2]
[315159700,1708895455768,-500.0,0.00023999,2]
[315159701,1708895455777,-500.0,0.00023999,2]
[315159702,1708895455786,-500.0,0.00023999,2]
[315159703,1708895455795,-500.0,0.00023999,2]
[315159704,1708895455805,-500.0,0.00023999,2]
[315159705,1708895455815,-500.0,0.00023999,2]
[315159706,1708895455824,-500.0,0.00023999,2]
[315159707,1708895455833,-624.86196893,0.00023999,2]
[315159708,1708895455843,-500.0,0.00023999,2]
[315159709,1708895455852,-243.45,0.00023999,2]
[315159710,1708895455861,-500.0,0.00023999,2]
[315159711,1708895455870,-500.0,0.00023999,2]
[315159712,1708895455880,-500.0,0.00023999,2]
[315159713,1708895455889,-270.83,0.00023999,2]
[315159714,1708895455898,-500.0,0.00023999,2]
[315159715,1708895455909,-500.0,0.00023999,2]
[315159716,1708895455917,-500.0,0.00023999,2]
[315159717,1708895455927,-500.0,0.00023999,2]
[315159718,1708895455940,-500.0,0.00023999,2]
[315159719,1708895455949,-383.84,0.00023999,2]
[315159720,1708895455959,-500.0,0.00023999,2]
[315159721,1708895455968,-500.0,0.00023999,2]
[315159722,1708895455978,-500.0,0.00023999,2]
[315159723,1708895455988,-271.1666653,0.00023999,2]
[315159724,1708895455997,-598.26,0.00023999,2]
[315159725,1708895456006,-598.26,0.00023999,2]
[315159726,1708895456018,-598.26,0.00023999,2]
[315159727,1708895456028,-598.26,0.00023999,2]
[315159728,1708895456038,-598.26,0.00023999,2]
[315159729,1708895456047,-598.26,0.00023999,2]
[315159730,1708895456056,-598.26,0.00023999,2]
[315159731,1708895456066,-598.26,0.00023999,2]
[315159732,1708895456075,-598.26,0.00023999,2]
[315159733,1708895456083,-598.26,0.00023999,2]
[315159734,1708895456092,-598.26,0.00023999,2]
[315159735,1708895456103,-598.26,0.00023999,2]
[315159736,1708895456113,-598.26,0.00023999,2]
[315159737,1708895456122,-598.26,0.00023999,2]
[315159738,1708895456131,-598.26,0.00023999,2]
[315159739,1708895456141,-598.26,0.00023999,2]
[315159740,1708895456150,-598.47679437,0.00023999,2]
[315159741,1708895456159,-500.0,0.00023999,2]
[315159742,1708895456168,-500.0,0.00023999,2]
[315159743,1708895456178,-500.0,0.00023999,2]
[315159744,1708895456188,-500.0,0.00023999,2]
[315159745,1708895456197,-500.0,0.00023999,2]
[315159746,1708895456207,-500.0,0.00023999,2]
[315159747,1708895456218,-500.0,0.00023999,2]
[315159748,1708895456229,-500.0,0.00023999,2]
[315159749,1708895456238,-500.0,0.00023999,2]
[315159750,1708895456248,-183.75,0.00023999,2]
[315159751,1708895456257,-500.0,0.00023999,2]
[315159752,1708895456267,-500.0,0.00023999,2]
[315159753,1708895456277,-500.0,0.00023999,2]
[315159754,1708895456287,-500.0,0.00023999,2]
[315159755,1708895456297,-500.0,0.00023999,2]
[315159756,1708895456307,-500.0,0.00023999,2]
[315159757,1708895456316,-500.0,0.00023999,2]
[315159758,1708895456326,-500.0,0.00023999,2]
[315159759,1708895456336,-526.12,0.00023999,2]
[315159760,1708895456345,-500.0,0.00023999,2]
[315159761,1708895456355,-437.07254261,0.00023999,2]
[315159762,1708895456364,-500.0,0.00023999,2]
[315159763,1708895456373,-1074.55,0.00023999,2]
[315159764,1708895456383,-1074.55,0.00023999,2]
[315159765,1708895456393,-1074.55,0.00023999,2]
[315159766,1708895456402,-500.0,0.00023999,2]
[315159767,1708895456412,-1074.55,0.00023999,2]
[315159768,1708895456421,-1074.55,0.00023999,2]
[315159769,1708895456431,-183.80706428,0.00023999,2]
[315159770,1708895456441,-1074.55,0.00023999,2]
[315159771,1708895456452,-1074.55,0.00023999,2]
[315159772,1708895456462,-1074.55,0.00023999,2]
[315159773,1708895456473,-1074.55,0.00023999,2]
[315159774,1708895456482,-1074.55,0.00023999,2]
[315159775,1708895456492,-1074.55,0.00023999,2]
[315159776,1708895456501,-1074.55,0.00023999,2]
[315159777,1708895456511,-1074.55,0.00023999,2]
[315159778,1708895456521,-1074.55,0.00023999,2]
[315159779,1708895456530,-1074.55,0.00023999,2]
[315159780,1708895456540,-1074.55,0.00023999,2]
[315159781,1708895456549,-1074.57,0.00023999,2]
[315159782,1708895456558,-500.0,0.00023999,2]
[315159783,1708895456568,-500.0,0.00023999,2]
[315159784,1708895456577,-500.0,0.00023999,2]
[315159785,1708895456586,-500.0,0.00023999,2]
[315159786,1708895456596,-379.62906691,0.00023999,2]
[315159787,1708895456605,-500.0,0.00023999,2]
[315159788,1708895456615,-500.0,0.00023999,2]
[315159789,1708895456624,-500.0,0.00023999,2]
[315159790,1708895456634,-500.0,0.00023999,2]
[315159791,1708895456643,-500.0,0.00023999,2]
[315159792,1708895456654,-500.0,0.00023999,2]
[315159793,1708895456664,-500.0,0.00023999,2]
[315159794,1708895456673,-154.16,0.00023999,2]
[315159795,1708895456683,-500.0,0.00023999,2]
[315159796,1708895456693,-500.0,0.00023999,2]
[315159797,1708895456703,-500.0,0.00023999,2]
[315159798,1708895456713,-500.0,0.00023999,2]
[315159799,1708895456723,-500.0,0.00023999,2]
[315159800,1708895456733,-610.96,0.00023999,2]
[315159801,1708895456743,-500.0,0.00023999,2]
[315159802,1708895456752,-500.0,0.00023999,2]
[315159803,1708895456762,-500.0,0.00023999,2]
[315159804,1708895456772,-500.0,0.00023999,2]
[315159805,1708895456781,-500.0,0.00023999,2]
[315159806,1708895456791,-500.0,0.00023999,2]
[315159807,1708895456801,-500.0,0.00023999,2]
[315159808,1708895456811,-500.0,0.00023999,2]
[315159809,1708895456820,-500.0,0.00023999,2]
[315159810,1708895456830,-500.0,0.00023999,2]
[315159811,1708895456840,-500.0,0.00023999,2]
[315159812,1708895456849,-500.0,0.00023999,2]
[315159813,1708895456859,-159.84,0.00023999,2]
[315159814,1708895456869,-500.0,0.00023999,2]
[315159815,1708895456879,-500.0,0.00023999,2]
[315159816,1708895456888,-500.0,0.00023999,2]
[315159817,1708895456898,-527.7,0.00023999,2]
[315159818,1708895456907,-500.0,0.00023999,2]
[315159819,1708895456917,-500.0,0.00023999,2]
[315159820,1708895456927,-500.0,0.00023999,2]
[315159821,1708895456937,-500.0,0.00023999,2]
[315159822,1708895456950,-500.0,0.00023999,2]
[315159823,1708895456959,-500.0,0.00023999,2]
[315159824,1708895456970,-500.0,0.00023999,2]
[315159825,1708895456980,-500.0,0.00023999,2]
[315159826,1708895456990,-500.0,0.00023999,2]
[315159827,1708895456999,-1093.2,0.00023999,2]
[315159828,1708895457009,-1093.2,0.00023999,2]
[315159829,1708895457019,-500.0,0.00023999,2]
[315159830,1708895457028,-1093.2,0.00023999,2]
[315159831,1708895457038,-500.0,0.00023999,2]
[315159832,1708895457048,-1093.2,0.00023999,2]
[315159833,1708895457058,-227.4082616,0.00023999,2]
[315159834,1708895457067,-1093.2,0.00023999,2]
[315159835,1708895457077,-1093.2,0.00023999,2]
[315159836,1708895457086,-1093.2,0.00023999,2]
[315159837,1708895457096,-1093.2,0.00023999,2]
[315159838,1708895457105,-1093.2,0.00023999,2]
[315159839,1708895457115,-1093.2,0.00023999,2]
[315159840,1708895457124,-1093.2,0.00023999,2]
[315159841,1708895457134,-1093.2,0.00023999,2]
[315159842,1708895457143,-1093.2,0.00023999,2]
[315159843,1708895457153,-1093.24,0.00023999,2]
[315159844,1708895457163,-500.0,0.00023999,2]
[315159845,1708895457172,-500.0,0.00023999,2]
[315159846,1708895457182,-224.05,0.00023999,2]
[315159847,1708895457192,-552.05,0.00023999,2]
[315159848,1708895457202,-552.05,0.00023999,2]
[315159849,1708895457212,-552.05,0.00023999,2]
[315159850,1708895457223,-552.05,0.00023999,2]
[315159851,1708895457232,-552.05,0.00023999,2]
[315159852,1708895457242,-500.0,0.00023999,2]
[315159853,1708895457251,-552.05,0.00023999,2]
[315159854,1708895457261,-188.76,0.00023999,2]
[315159855,1708895457271,-552.05,0.00023999,2]
[315159856,1708895457280,-552.05,0.00023999,2]
[315159857,1708895457289,-552.05,0.00023999,2]
[315159858,1708895457299,-552.05,0.00023999,2]
[315159859,1708895457309,-552.05,0.00023999,2]
[315159860,1708895457318,-552.05,0.00023999,2]
[315159861,1708895457328,-552.05,0.00023999,2]
[315159862,1708895457338,-552.21,0.00023999,2]
[315159863,1708895457347,-500.0,0.00023999,2]
[315159864,1708895457357,-578.66,0.00023999,2]
[315159865,1708895457367,-500.0,0.00023999,2]
[315159866,1708895457376,-500.0,0.00023999,2]
[315159867,1708895457386,-499.32,0.00023999,2]
[315159868,1708895457395,-672.5,0.00023999,2]
[315159869,1708895457405,-672.5,0.00023999,2]
[315159870,1708895457415,-672.5,0.00023999,2]
[315159871,1708895457424,-672.5,0.00023999,2]
[315159872,1708895457434,-672.5,0.00023999,2]
[315159873,1708895457443,-672.5,0.00023999,2]
[315159874,1708895457453,-672.5,0.00023999,2]
[315159875,1708895457462,-672.5,0.00023999,2]
[315159876,1708895457472,-672.5,0.00023999,2]
[315159877,1708895457482,-672.5,0.00023999,2]
[315159878,1708895457491,-672.5,0.00023999,2]
[315159879,1708895457500,-672.5,0.00023999,2]
[315159880,1708895457510,-672.7,0.00023999,2]
[315159881,1708895457520,-500.0,0.00023999,2]
[315159882,1708895457529,-500.0,0.00023999,2]
[315159883,1708895457539,-500.0,0.00023999,2]
[315159884,1708895457549,-661.29,0.00023999,2]
[315159885,1708895457559,-661.29,0.00023999,2]
[315159886,1708895457568,-607.83,0.00023999,2]
[315159887,1708895457577,-661.29,0.00023999,2]
[315159888,1708895457587,-661.29,0.00023999,2]
[315159889,1708895457597,-661.29,0.00023999,2]
[315159890,1708895457606,-661.29,0.00023999,2]
[315159891,1708895457615,-661.29,0.00023999,2]
[315159892,1708895457625,-661.29,0.00023999,2]
[315159893,1708895457634,-661.29,0.00023999,2]
[315159894,1708895457644,-661.29,0.00023999,2]
[315159895,1708895457654,-661.29,0.00023999,2]
[315159896,1708895457663,-661.29,0.00023999,2]
[315159897,1708895457673,-661.29,0.00023999,2]
[315159898,1708895457683,-661.45,0.00023999,2]
[315159899,1708895457692,-500.0,0.00023999,2]
[315159900,1708895457701,-500.0,0.00023999,2]
[315159901,1708895457711,-500.0,0.00023999,2]
[315159902,1708895457721,-500.0,0.00023999,2]
[315159903,1708895457730,-500.0,0.00023999,2]
[315159904,1708895457739,-500.0,0.00023999,2]
[315159905,1708895457748,-500.0,0.00023999,2]
[315159906,1708895457758,-500.0,0.00023999,2]
[315159907,1708895457767,-500.0,0.00023999,2]
[315159908,1708895457777,-500.0,0.00023999,2]
[315159909,1708895457786,-500.0,0.00023999,2]
[315159910,1708895457796,-500.0,0.00023999,2]
[315159911,1708895457805,-500.0,0.00023999,2]
[315159912,1708895457814,-176.26,0.00023999,2]
[315159913,1708895457823,-500.0,0.00023999,2]
[315159914,1708895457833,-500.0,0.00023999,2]
[315159915,1708895457842,-500.0,0.00023999,2]
[315159916,1708895457852,-372.63,0.00023999,2]
[315159917,1708895457862,-1275.86,0.00023999,2]
[315159918,1708895457871,-1275.86,0.00023999,2]
[315159919,1708895457882,-1275.86,0.00023999,2]
[315159920,1708895457891,-1275.86,0.00023999,2]
[315159921,1708895457901,-1275.86,0.00023999,2]
[315159922,1708895457911,-1275.86,0.00023999,2]
[315159923,1708895457921,-1275.86,0.00023999,2]
[315159924,1708895457931,-1275.86,0.00023999,2]
[315159925,1708895457941,-1275.86,0.00023999,2]
[315159926,1708895457952,-1275.86,0.00023999,2]
[315159927,1708895457961,-1275.86,0.00023999,2]
[315159928,1708895457971,-1275.86,0.00023999,2]
[315159929,1708895457982,-1275.94,0.00023999,2]
[315159930,1708895457991,-980.17,0.00023999,2]
[315159931,1708895458001,-980.17,0.00023999,2]
[315159932,1708895458011,-980.17,0.00023999,2]
[315159933,1708895458021,-980.17,0.00023999,2]
[315159934,1708895458031,-980.17,0.00023999,2]
[315159935,1708895458040,-980.17,0.00023999,2]
[315159936,1708895458050,-980.17,0.00023999,2]
[315159937,1708895458060,-980.17,0.00023999,2]
[315159938,1708895458070,-980.17,0.00023999,2]
[315159939,1708895458080,-980.17,0.00023999,2]
[315159940,1708895458090,-980.17,0.00023999,2]
[315159941,1708895458100,-980.17,0.00023999,2]
[315159942,1708895458109,-980.17,0.00023999,2]
[315159943,1708895458119,-980.29,0.00023999,2]
[315159944,1708895458129,-500.0,0.00023999,2]
[315159945,1708895458139,-500.0,0.00023999,2]
[315159946,1708895458149,-500.0,0.00023999,2]
[315159947,1708895458160,-367.81,0.00023999,2]
[315159948,1708895458170,-181.0,0.00023999,2]
[315159949,1708895458181,-500.0,0.00023999,2]
[315159950,1708895458191,-500.0,0.00023999,2]
[315159951,1708895458201,-500.0,0.00023999,2]
[315159952,1708895458211,-474.96,0.00023999,2]
[315159953,1708895458222,-500.0,0.00023999,2]
[315159954,1708895458231,-500.0,0.00023999,2]
[315159955,1708895458241,-500.0,0.00023999,2]
[315159956,1708895458250,-500.0,0.00023999,2]
[315159957,1708895458260,-500.0,0.00023999,2]
[315159958,1708895458269,-500.0,0.00023999,2]
[315159959,1708895458279,-500.0,0.00023999,2]
[315159960,1708895458289,-500.0,0.00023999,2]
[315159961,1708895458299,-500.0,0.00023999,2]
[315159962,1708895458309,-316.45,0.00023999,2]
[315159963,1708895458319,-500.0,0.00023999,2]
[315159964,1708895458328,-500.0,0.00023999,2]
[315159965,1708895458338,-500.0,0.00023999,2]
[315159966,1708895458347,-500.0,0.00023999,2]
[315159967,1708895458357,-304.45,0.00023999,2]
[315159968,1708895458368,-500.0,0.00023999,2]
[315159969,1708895458378,-500.0,0.00023999,2]
[315159970,1708895458388,-601.84,0.00023999,2]
[315159971,1708895458398,-500.0,0.00023999,2]
[315159972,1708895458579,-603.6,0.00023999,2]
[315159973,1708895458590,-500.0,0.00023999,2]
[315159974,1708895458600,-571.05,0.00023999,2]
[315159975,1708895458610,-571.05,0.00023999,2]
[315159976,1708895458619,-571.05,0.00023999,2]
[315159977,1708895458629,-571.05,0.00023999,2]
[315159978,1708895458639,-571.05,0.00023999,2]
[315159979,1708895458649,-571.05,0.00023999,2]
[315159980,1708895458658,-571.05,0.00023999,2]
[315159981,1708895458667,-571.05,0.00023999,2]
[315159982,1708895458677,-571.05,0.00023999,2]
[315159983,1708895458686,-571.05,0.00023999,2]
[315159984,1708895458696,-571.05,0.00023999,2]
[315159985,1708895458705,-571.05,0.00023999,2]
[315159986,1708895458715,-571.27,0.00023999,2]
[315159987,1708895458724,-671.23,0.00023999,2]
[315159988,1708895458733,-671.23,0.00023999,2]
[315159989,1708895458742,-671.23,0.00023999,2]
[315159990,1708895458752,-671.23,0.00023999,2]
[315159991,1708895458761,-671.23,0.00023999,2]
[315159992,1708895458770,-671.23,0.00023999,2]
[315159993,1708895458780,-671.23,0.00023999,2]
[315159994,1708895458789,-671.23,0.00023999,2]
[315159995,1708895458799,-671.23,0.00023999,2]
[315159996,1708895458809,-671.23,0.00023999,2]
[315159997,1708895458818,-671.23,0.00023999,2]
[315159998,1708895458828,-671.23,0.00023999,2]
[315159999,1708895458837,-671.42,0.00023999,2]
[315160000,1708895458847,-533.71,0.00023999,2]
[315160001,1708895458856,-500.0,0.00023999,2]
[315160002,1708895458865,-388.14565596,0.00023999,2]
[315160003,1708895458875,-265.95,0.00023999,2]
[315160004,1708895458884,-500.0,0.00023999,2]
[315160005,1708895458894,-500.0,0.00023999,2]
[315160006,1708895458903,-500.0,0.00023999,2]
[315160007,1708895458912,-289.28,0.00023999,2]
[315160008,1708895458922,-500.0,0.00023999,2]
[315160009,1708895458932,-500.0,0.00023999,2]
[315160010,1708895458943,-500.0,0.00023999,2]
[315160011,1708895458952,-500.0,0.00023999,2]
[315160012,1708895458961,-500.0,0.00023999,2]
[315160013,1708895458971,-500.0,0.00023999,2]
[315160014,1708895458981,-500.0,0.00023999,2]
[315160015,1708895458991,-500.0,0.00023999,2]
[315160016,1708895459000,-500.0,0.00023999,2]
[315160017,1708895459010,-500.0,0.00023999,2]
[315160018,1708895459019,-500.0,0.00023999,2]
[315160019,1708895459029,-199.78,0.00023999,2]
[315160020,1708895459038,-1204312.51494751,0.00024,30]
[315160021,1708895459069,-836.60016149,0.00024,30]
[315160022,1708895459507,-21.775,0.00023797,2]
[315160023,1708895565430,2816.17961885,0.00021888,2]
[315160024,1708895565450,3618.50208115,0.00021888,2]
[315160025,1708895615501,155.0,0.00021888,2]
[315160026,1708895617559,226.49791885,0.00021888,2]
[315160027,1708895617578,243.26813566,0.00021888,2]
[315160028,1708895633558,469.76605451,0.00021888,2]
[315160031,1708895637434,161.83496246,0.00021888,2]
[315160032,1708895645084,206.0,0.00021263,2]
[315160033,1708895649625,1439.74,0.00020585,2]
[315160034,1708895657568,469.76605451,0.00021888,2]
[315160035,1708895673570,393.37669925,0.00021888,2]
[315160036,1708895770898,616.24809361,0.00021824,2]
[315160037,1708895770918,2694.27742339,0.00021824,2]
[315160038,1708895819373,200.30026865,0.00021715,2]
[315160039,1708895843099,329.60556228,0.00021833,2]
[315160040,1708895879501,250.0,0.0002185,2]
[315160041,1708895902591,191.91293503,0.00021741,2]
[315160042,1708895910310,333.90381065,0.00021839,2]
[315160043,1708895910330,2371.09618935,0.00021839,2]
[315160044,1708895920536,151.0,0.00026961,120]
[315160047,1708895927486,150.0,0.0002183,2]
[315160048,1708895929766,500.0,0.00021743,2]
[315160049,1708895936362,978.90381065,0.00021743,2]
[315160050,1708895936382,4000.0,0.00021743,2]
[315160051,1708895936600,4000.0,0.00021743,2]
[315160052,1708895936623,1000.0,0.00021743,2]
[315160053,1708895936656,1000.0,0.00021743,2]
[315160054,1708895936677,4000.0,0.00021743,2]
[315160055,1708895936696,4000.0,0.00021743,2]
[315160056,1708895936715,4000.0,0.00021743,2]
[315160057,1708895936735,4000.0,0.00021743,2]
[315160058,1708895936755,1000.0,0.00021743,2]
[315160059,1708895936776,1000.0,0.00021743,2]
[315160060,1708895936795,1000.0,0.00021743,2]
[315160061,1708895936829,57893.22618935,0.00021743,2]
[315160062,1708895937119,2000.0,0.00021743,2]
[315160063,1708895938673,500.0,0.00021743,2]
[315160064,1708895943832,200.0,0.00021744,2]
[315160065,1708895944016,206.0,0.00021263,2]
[315160066,1708895954167,3249.64,0.00021744,2]
[315160067,1708895964996,701.33,0.00021905,2]
[315160068,1708895978434,9503.1,0.00021735,2]
[315160069,1708895983753,475.43,0.00021723,10]
[315160070,1708895983958,475.43,0.00022255,10]
[315160071,1708895984177,475.43,0.00022787,10]
[315160072,1708896009702,11069.99,0.00021721,2]
[315160073,1708896014756,179.77,0.00021721,2]
[315160074,1708896035211,500.0,0.00021751,2]
[315160075,1708896042921,150.0,0.00021755,2]
[315160076,1708896068189,177.87,0.00021754,2]
[315160077,1708896074929,163.91,0.00017403,2]
[315160078,1708896075305,163.91,0.00020304,2]
[315160079,1708896091146,1927.65,0.00019841,2]
[315160080,1708896128476,166.19216903,0.00021813,2]
[315160081,1708896158649,23900.0,0.00021576,2]
[315160082,1708896163343,200.0,0.00021575,2]
[315160083,1708896180194,200.0,0.00021571,2]
[315160084,1708896199979,2348.15,0.00021554,2]
[315160085,1708896204366,498.99,0.00021554,2]
[315160086,1708896239320,2896.89,0.00021563,2]
[315160087,1708896249077,185.87214304,0.00021455,2]
[315160088,1708896264623,230.75303428,0.00021905,2]
[315160089,1708896273558,200.0,0.00021592,2]
[315160092,1708896313110,692.59,0.00021615,2]
[315160093,1708896330239,2395.4,0.00021638,2]
[315160094,1708896341119,250.0,0.00021649,2]
[315160095,1708896349435,171.01,0.00021646,2]
[315160096,1708896350445,4332.14,0.00021655,2]
[315160097,1708896364351,206.0,0.000212,2]
[315160098,1708896387655,580.38,0.00021829,2]
[315160099,1708896388046,580.38,0.00021889,2]
[315160100,1708896393790,200.0,0.0002159,2]
[315160101,1708896423603,200.0,0.00021482,2]
[315160102,1708896441058,190.17,0.00021486,10]
[315160103,1708896441260,190.17,0.00022012,10]
[315160104,1708896441483,108.05,0.00022538,10]
[315160105,1708896444048,164.09408402,0.00021849,2]
[315160106,1708896445954,2000.0,0.00021474,2]
[315160107,1708896451209,150.0,0.00021823,2]
[315160108,1708896494342,500.0,0.0002151,2]
[315160109,1708896495302,188.17,0.0002151,2]
[315160110,1708896518167,150.0,0.00021823,2]
[315160111,1708896518205,20000.0,0.00021,2]
[315160112,1708896523902,150.0,0.00021523,2]
[315160113,1708896535241,500.0,0.00021505,2]
[315160114,1708896539598,163.91,0.00017204,2]
[315160115,1708896566549,1000.0,0.000215,2]
[315160116,1708896582890,150.0,0.00021823,2]
[315160117,1708896588698,1241.77234775,0.00021905,2]
[315160118,1708896614343,1831.26,0.00019607,2]
[315160119,1708896614682,1831.26,0.00021871,2]
[315160123,1708896632219,-486.08641521,0.00021908,2]
[315160124,1708896632230,-485.9379771,0.00021909,2]
[315160125,1708896632245,-445.61321573,0.00021912,2]
[315160126,1708896632258,-500.0,0.00021918,2]
[315160127,1708896632268,-155.68,0.00021918,2]
[315160128,1708896632277,-5808.97,0.00021932,2]
[315160129,1708896632287,-580.38,0.00021949,2]
[315160130,1708896632296,-300.0,0.00022009,2]
[315160131,1708896632306,-300.0,0.00022009,2]
[315160132,1708896632316,-150.0,0.00022009,2]
[315160133,1708896632327,-580.38,0.00022009,2]
[315160134,1708896632336,-561.29,0.0002201,2]
[315160135,1708896632346,-580.38,0.00022069,2]
[315160137,1708896632355,-176.55,0.00022119,2]
[315160139,1708896632364,-561.29,0.00022126,2]
[315160141,1708896632374,-580.38,0.00022129,2]
[315160143,1708896632383,-580.38,0.00022189,2]
[315160145,1708896632392,-561.29,0.00022241,2]
[315160147,1708896632401,-580.38,0.00022248,2]
[315160149,1708896632411,-150.0,0.00022249,2]
[315160151,1708896632420,-580.38,0.00022308,2]
[315160153,1708896632429,-561.29,0.00022357,2]
[315160155,1708896632439,-580.38,0.00022368,2]
[315160157,1708896632449,-174.87012141,0.00022371,2]
[315160159,1708896632459,-580.38,0.00022428,2]
[315160161,1708896632469,-561.29,0.00022473,2]
[315160163,1708896632478,-580.38,0.00022488,2]
[315160165,1708896632489,-82.12,0.00022538,10]
[315160167,1708896632498,-580.38,0.00022548,2]
[315160169,1708896632508,-206.0,0.00022585,4]
[315160171,1708896632517,-561.29,0.00022589,2]
[315160173,1708896632526,-580.38,0.00022608,2]
[315160175,1708896632536,-580.38,0.00022668,2]
[315160177,1708896632545,-166.71,0.00022681,2]
[315160179,1708896632555,-561.29,0.00022705,2]
[315160181,1708896632564,-2500.0,0.00022723,2]
[315160183,1708896632573,-124.66025365,0.00022727,2]
[315160236,1708896637909,-455.71974635,0.00022727,2]